[Event "Late-Titled-Tuesday-Blitz-July-09-2024"]
[Site "Chess.com"]
[Date "2024.07.09"]
[Round "9"]
[White "Vladimir_2020"]
[Black "subham777"]
[Result "1-0"]
[WhiteElo "2779"]
[BlackElo "2565"]
[TimeControl "180+1"]
[EndTime "15:44:18 PDT"]
[Termination "Vladimir_2020 won by checkmate"]

1. Nf3 {[%clk 0:03:00.9]} 1... d5 {[%clk 0:02:59.6]} 2. e3 {[%clk 0:03:00.6]}
2... Nf6 {[%clk 0:03:00]} 3. c4 {[%clk 0:03:00.7]} 3... e6 {[%clk 0:03:00.5]} 4.
Nc3 {[%clk 0:03:00.8]} 4... Be7 {[%clk 0:02:56.9]} 5. b3 {[%clk 0:02:58.3]} 5...
c5 {[%clk 0:02:56.5]} 6. cxd5 {[%clk 0:02:55.4]} 6... Nxd5 {[%clk 0:02:57.1]} 7.
Nxd5 {[%clk 0:02:51.7]} 7... exd5 {[%clk 0:02:54.7]} 8. Bb2 {[%clk 0:02:51.1]}
8... O-O {[%clk 0:02:37.5]} 9. Be2 {[%clk 0:02:50.5]} 9... Nc6 {[%clk
0:02:37.4]} 10. O-O {[%clk 0:02:49.7]} 10... d4 {[%clk 0:02:37.1]} 11. Bb5
{[%clk 0:02:34.7]} 11... Bg4 {[%clk 0:02:31.9]} 12. h3 {[%clk 0:02:32.3]} 12...
Bh5 {[%clk 0:02:23]} 13. Rc1 {[%clk 0:01:48.3]} 13... Rc8 {[%clk 0:02:12.7]} 14.
Re1 {[%clk 0:01:41.7]} 14... d3 {[%clk 0:01:59.1]} 15. g4 {[%clk 0:01:34.4]}
15... Bg6 {[%clk 0:01:55.7]} 16. Bxc6 {[%clk 0:01:33.2]} 16... Rxc6 {[%clk
0:01:55.1]} 17. Ne5 {[%clk 0:01:33.3]} 17... Rc8 {[%clk 0:01:45.5]} 18. Qf3
{[%clk 0:01:30.3]} 18... b6 {[%clk 0:01:35.3]} 19. Nxg6 {[%clk 0:01:16.2]} 19...
fxg6 {[%clk 0:01:30.8]} 20. Qe4 {[%clk 0:01:15.9]} 20... Bf6 {[%clk 0:01:26.8]}
21. Bxf6 {[%clk 0:01:12.4]} 21... Qxf6 {[%clk 0:01:26.3]} 22. Rf1 {[%clk
0:01:04.6]} 22... Rcd8 {[%clk 0:01:19.1]} 23. Rc3 {[%clk 0:01:04.5]} 23... Qd6
{[%clk 0:01:14.4]} 24. Kg2 {[%clk 0:01:02.7]} 24... h5 {[%clk 0:01:01.7]} 25. f4
{[%clk 0:00:59.6]} 25... Rfe8 {[%clk 0:00:46.8]} 26. Qc4+ {[%clk 0:00:58.4]}
26... Kh8 {[%clk 0:00:46.9]} 27. Rf3 {[%clk 0:00:51.8]} 27... h4 {[%clk
0:00:37]} 28. g5 {[%clk 0:00:50]} 28... Qf8 {[%clk 0:00:27.6]} 29. Rxd3 {[%clk
0:00:48.1]} 29... Rxd3 {[%clk 0:00:28]} 30. Qxd3 {[%clk 0:00:48]} 30... Rd8
{[%clk 0:00:28.1]} 31. Qxg6 {[%clk 0:00:35.7]} 31... Rxd2+ {[%clk 0:00:27.2]}
32. Rf2 {[%clk 0:00:36.1]} 32... Qa8+ {[%clk 0:00:20.8]} 33. e4 {[%clk
0:00:36.1]} 33... Qd8 {[%clk 0:00:17.5]} 34. Qh5+ {[%clk 0:00:27.6]} 34... Kg8
{[%clk 0:00:16.6]} 35. Qxh4 {[%clk 0:00:27.9]} 35... Qd4 {[%clk 0:00:13.5]} 36.
Rxd2 {[%clk 0:00:27.7]} 36... Qxd2+ {[%clk 0:00:14.3]} 37. Qf2 {[%clk
0:00:27.8]} 37... Qd3 {[%clk 0:00:13.7]} 38. e5 {[%clk 0:00:26.4]} 38... Qe4+
{[%clk 0:00:12.9]} 39. Qf3 {[%clk 0:00:26.4]} 39... Qc2+ {[%clk 0:00:11.9]} 40.
Kg3 {[%clk 0:00:26.7]} 40... Qb1 {[%clk 0:00:09.5]} 41. Kg4 {[%clk 0:00:22.5]}
41... g6 {[%clk 0:00:06.4]} 42. f5 {[%clk 0:00:20.4]} 42... Qg1+ {[%clk
0:00:05.6]} 43. Kf4 {[%clk 0:00:18.4]} 43... Qc1+ {[%clk 0:00:04.1]} 44. Ke4
{[%clk 0:00:18.2]} 44... Qb1+ {[%clk 0:00:03.8]} 45. Kd5 {[%clk 0:00:18.3]}
45... gxf5 {[%clk 0:00:02]} 46. Ke6 {[%clk 0:00:18]} 46... f4 {[%clk 0:00:01.6]}
47. Kf6 {[%clk 0:00:17.4]} 47... Qh7 {[%clk 0:00:01.5]} 48. Qa8# {[%clk
0:00:16.6]} 1-0

[Event "Late-Titled-Tuesday-Blitz-July-09-2024"]
[Site "Chess.com"]
[Date "2024.07.09"]
[Round "9"]
[White "flaviorcb"]
[Black "wild3000"]
[Result "0-1"]
[WhiteElo "2191"]
[BlackElo "2438"]
[TimeControl "180+1"]
[EndTime "15:44:21 PDT"]
[Termination "wild3000 won by checkmate"]

1. d4 {[%clk 0:03:00.9]} 1... d6 {[%clk 0:01:00.1]} 2. Nf3 {[%clk 0:02:59.2]}
2... a6 {[%clk 0:01:01]} 3. Bf4 {[%clk 0:02:58.8]} 3... b5 {[%clk 0:01:01.3]} 4.
e3 {[%clk 0:02:58]} 4... Bb7 {[%clk 0:01:02.2]} 5. a4 {[%clk 0:02:56.7]} 5...
Nf6 {[%clk 0:01:03.1]} 6. Be2 {[%clk 0:02:55.1]} 6... b4 {[%clk 0:01:02.3]} 7.
c3 {[%clk 0:02:54.3]} 7... a5 {[%clk 0:00:58.4]} 8. O-O {[%clk 0:02:53.6]} 8...
e6 {[%clk 0:00:58]} 9. h3 {[%clk 0:02:50.6]} 9... Be7 {[%clk 0:00:57.9]} 10.
Nbd2 {[%clk 0:02:49]} 10... O-O {[%clk 0:00:57.7]} 11. Bd3 {[%clk 0:02:46.5]}
11... Nbd7 {[%clk 0:00:57.1]} 12. e4 {[%clk 0:02:46.1]} 12... c5 {[%clk
0:00:54.5]} 13. Re1 {[%clk 0:02:38.7]} 13... cxd4 {[%clk 0:00:48.7]} 14. cxd4
{[%clk 0:02:36]} 14... Nb6 {[%clk 0:00:44.9]} 15. Rc1 {[%clk 0:02:28.7]} 15...
Qd7 {[%clk 0:00:42.4]} 16. Bb5 {[%clk 0:02:26.6]} 16... Qd8 {[%clk 0:00:42.1]}
17. b3 {[%clk 0:02:13.1]} 17... Rc8 {[%clk 0:00:41.3]} 18. Rxc8 {[%clk
0:02:11.9]} 18... Qxc8 {[%clk 0:00:42.2]} 19. Qc1 {[%clk 0:02:11.6]} 19... Qxc1
{[%clk 0:00:36.4]} 20. Rxc1 {[%clk 0:02:11.7]} 20... Bxe4 {[%clk 0:00:32.4]} 21.
Nxe4 {[%clk 0:02:06.7]} 21... Nxe4 {[%clk 0:00:33.3]} 22. Rc7 {[%clk 0:02:06.7]}
22... Nd5 {[%clk 0:00:33.3]} 23. Ra7 {[%clk 0:01:52.1]} 23... Nxf4 {[%clk
0:00:30.2]} 24. Rxe7 {[%clk 0:01:52]} 24... Rc8 {[%clk 0:00:27.2]} 25. Ra7
{[%clk 0:01:38.8]} 25... g5 {[%clk 0:00:26.7]} 26. Rxa5 {[%clk 0:01:28.8]} 26...
Rc1+ {[%clk 0:00:26]} 27. Kh2 {[%clk 0:01:29.1]} 27... Rc2 {[%clk 0:00:26.9]}
28. Bd3 {[%clk 0:01:27.4]} 28... Rxf2 {[%clk 0:00:20.7]} 29. Bxe4 {[%clk
0:01:26.9]} 29... Rxg2+ {[%clk 0:00:21]} 30. Kh1 {[%clk 0:01:27.4]} 30... d5
{[%clk 0:00:20.4]} 31. Ra8+ {[%clk 0:01:14.7]} 31... Kg7 {[%clk 0:00:19.8]} 32.
Bxd5 {[%clk 0:00:54.2]} 32... exd5 {[%clk 0:00:20]} 33. Ne5 {[%clk 0:00:54.1]}
33... Rg3 {[%clk 0:00:17]} 34. a5 {[%clk 0:00:50.9]} 34... Rxh3+ {[%clk
0:00:16.6]} 35. Kg1 {[%clk 0:00:50.5]} 35... Rxb3 {[%clk 0:00:16.7]} 36. a6
{[%clk 0:00:50.6]} 36... Ra3 {[%clk 0:00:16.4]} 37. a7 {[%clk 0:00:50.3]} 37...
b3 {[%clk 0:00:12.1]} 38. Nc6 {[%clk 0:00:49.8]} 38... b2 {[%clk 0:00:11.1]} 39.
Rb8 {[%clk 0:00:50.4]} 39... Nd3 {[%clk 0:00:08.2]} 40. Kf1 {[%clk 0:00:28.9]}
40... h5 {[%clk 0:00:07.8]} 41. Ke2 {[%clk 0:00:28.8]} 41... Nc1+ {[%clk
0:00:07.2]} 42. Kd1 {[%clk 0:00:21.1]} 42... Nb3 {[%clk 0:00:07.4]} 43. Rxb3
{[%clk 0:00:19.8]} 43... Rxb3 {[%clk 0:00:06.8]} 44. a8=Q {[%clk 0:00:12.4]}
44... b1=Q+ {[%clk 0:00:06.7]} 45. Kd2 {[%clk 0:00:13.3]} 45... Rd3+ {[%clk
0:00:06.9]} 46. Ke2 {[%clk 0:00:13.4]} 46... Qd1+ {[%clk 0:00:07.8]} 47. Kf2
{[%clk 0:00:14]} 47... Rf3+ {[%clk 0:00:08.3]} 48. Kg2 {[%clk 0:00:14.8]} 48...
Qf1+ {[%clk 0:00:08.5]} 49. Kh2 {[%clk 0:00:15.7]} 49... Rh3# {[%clk 0:00:09.2]}
0-1

[Event "Late-Titled-Tuesday-Blitz-July-09-2024"]
[Site "Chess.com"]
[Date "2024.07.09"]
[Round "9"]
[White "katharinareinecke"]
[Black "TOCANTINS_TO"]
[Result "0-1"]
[WhiteElo "2082"]
[BlackElo "2054"]
[TimeControl "180+1"]
[EndTime "15:44:21 PDT"]
[Termination "TOCANTINS_TO won on time"]

1. e4 {[%clk 0:03:00.9]} 1... c5 {[%clk 0:02:59.7]} 2. Nf3 {[%clk 0:02:58.1]}
2... e6 {[%clk 0:02:56.8]} 3. g3 {[%clk 0:02:56.8]} 3... Nc6 {[%clk 0:02:46.4]}
4. Bg2 {[%clk 0:02:56.4]} 4... d6 {[%clk 0:02:42.6]} 5. O-O {[%clk 0:02:55.9]}
5... Nf6 {[%clk 0:02:41.8]} 6. Re1 {[%clk 0:02:52.6]} 6... Be7 {[%clk
0:02:40.6]} 7. c3 {[%clk 0:02:52.5]} 7... c4 {[%clk 0:02:29]} 8. Qe2 {[%clk
0:02:48.6]} 8... b5 {[%clk 0:02:04.4]} 9. b3 {[%clk 0:02:42.8]} 9... cxb3 {[%clk
0:01:58.4]} 10. axb3 {[%clk 0:02:40.7]} 10... a6 {[%clk 0:01:55.7]} 11. d4
{[%clk 0:02:34.7]} 11... d5 {[%clk 0:01:51.1]} 12. e5 {[%clk 0:02:18.1]} 12...
Nd7 {[%clk 0:01:49.3]} 13. Na3 {[%clk 0:01:59.6]} 13... Bb7 {[%clk 0:01:43]} 14.
c4 {[%clk 0:01:50.3]} 14... bxc4 {[%clk 0:01:43]} 15. bxc4 {[%clk 0:01:48.2]}
15... dxc4 {[%clk 0:01:41.4]} 16. Nxc4 {[%clk 0:01:47.2]} 16... Nb6 {[%clk
0:01:33.9]} 17. Be3 {[%clk 0:01:19.5]} 17... Nd5 {[%clk 0:01:21.2]} 18. Nfd2
{[%clk 0:01:00.3]} 18... a5 {[%clk 0:01:12.5]} 19. Ne4 {[%clk 0:00:58]} 19...
O-O {[%clk 0:01:02.4]} 20. Ncd6 {[%clk 0:00:53]} 20... Bxd6 {[%clk 0:01:00]} 21.
Nxd6 {[%clk 0:00:52.2]} 21... Ba6 {[%clk 0:00:57.4]} 22. Qc2 {[%clk 0:00:47]}
22... Ncb4 {[%clk 0:00:49.8]} 23. Qe4 {[%clk 0:00:39.9]} 23... Bd3 {[%clk
0:00:41.5]} 24. Qh4 {[%clk 0:00:37.9]} 24... Qxh4 {[%clk 0:00:34.6]} 25. gxh4
{[%clk 0:00:37.4]} 25... Nc2 {[%clk 0:00:34.3]} 26. Red1 {[%clk 0:00:24.9]}
26... Nxa1 {[%clk 0:00:33.3]} 27. Rxd3 {[%clk 0:00:25.1]} 27... Nc2 {[%clk
0:00:32.9]} 28. Rb3 {[%clk 0:00:20]} 28... Rab8 {[%clk 0:00:31.7]} 29. Bxd5
{[%clk 0:00:11.9]} 29... exd5 {[%clk 0:00:29.2]} 30. Rc3 {[%clk 0:00:10.7]}
30... Rb1+ {[%clk 0:00:27.5]} 31. Kg2 {[%clk 0:00:10.4]} 31... Nxe3+ {[%clk
0:00:25.9]} 32. fxe3 {[%clk 0:00:11.3]} 32... Rb2+ {[%clk 0:00:22.9]} 33. Kg3
{[%clk 0:00:11.6]} 33... Rfb8 {[%clk 0:00:19.6]} 34. Rc5 {[%clk 0:00:11.4]}
34... a4 {[%clk 0:00:19.3]} 35. Rxd5 {[%clk 0:00:11.6]} 35... a3 {[%clk
0:00:19.7]} 36. Nf5 {[%clk 0:00:09.3]} 36... a2 {[%clk 0:00:16.5]} 37. Ra5
{[%clk 0:00:08.8]} 37... h6 {[%clk 0:00:12.5]} 38. Nd6 {[%clk 0:00:08.6]} 38...
Re2 {[%clk 0:00:11]} 39. Nc4 {[%clk 0:00:07.8]} 39... Rb1 {[%clk 0:00:10.3]} 40.
Ra8+ {[%clk 0:00:06.2]} 40... Kh7 {[%clk 0:00:09.3]} 41. e6 {[%clk 0:00:05.8]}
41... fxe6 {[%clk 0:00:08]} 42. Ne5 {[%clk 0:00:04.8]} 42... a1=Q {[%clk
0:00:08.1]} 43. Rf8 {[%clk 0:00:02.1]} 43... Qa3 {[%clk 0:00:06.9]} 0-1

[Event "Late-Titled-Tuesday-Blitz-July-09-2024"]
[Site "Chess.com"]
[Date "2024.07.09"]
[Round "9"]
[White "protectiago"]
[Black "EternalNight8"]
[Result "0-1"]
[WhiteElo "2173"]
[BlackElo "2375"]
[TimeControl "180+1"]
[EndTime "15:44:30 PDT"]
[Termination "EternalNight8 won by resignation"]

1. d4 {[%clk 0:02:59.1]} 1... Nf6 {[%clk 0:03:00.1]} 2. c4 {[%clk 0:02:56.6]}
2... g6 {[%clk 0:03:00.3]} 3. Nc3 {[%clk 0:02:55.9]} 3... d5 {[%clk 0:03:00.5]}
4. cxd5 {[%clk 0:02:54.8]} 4... Nxd5 {[%clk 0:03:01.4]} 5. e4 {[%clk 0:02:55.2]}
5... Nxc3 {[%clk 0:03:01.4]} 6. bxc3 {[%clk 0:02:55.6]} 6... Bg7 {[%clk
0:03:02.1]} 7. Be3 {[%clk 0:02:52.9]} 7... c5 {[%clk 0:03:01.8]} 8. Rc1 {[%clk
0:02:51.9]} 8... Qa5 {[%clk 0:02:54.2]} 9. Qd2 {[%clk 0:02:49.4]} 9... O-O
{[%clk 0:02:52.3]} 10. d5 {[%clk 0:02:46.1]} 10... e6 {[%clk 0:02:49.3]} 11. c4
{[%clk 0:02:46]} 11... Qxd2+ {[%clk 0:02:27.8]} 12. Kxd2 {[%clk 0:02:34.3]}
12... b6 {[%clk 0:02:28.2]} 13. Bd3 {[%clk 0:02:29.1]} 13... Nd7 {[%clk
0:02:22.7]} 14. Nf3 {[%clk 0:02:18.3]} 14... Re8 {[%clk 0:02:17.7]} 15. Rhe1
{[%clk 0:01:54.7]} 15... Bb7 {[%clk 0:02:13.7]} 16. a4 {[%clk 0:01:44.2]} 16...
Rad8 {[%clk 0:02:11.1]} 17. Kc2 {[%clk 0:01:38]} 17... h6 {[%clk 0:01:47.7]} 18.
h4 {[%clk 0:01:37.1]} 18... f5 {[%clk 0:01:28.4]} 19. dxe6 {[%clk 0:01:33.2]}
19... fxe4 {[%clk 0:01:27.6]} 20. exd7 {[%clk 0:01:28.6]} 20... Rxd7 {[%clk
0:01:28.2]} 21. Be2 {[%clk 0:01:00.4]} 21... exf3 {[%clk 0:01:26]} 22. Bxf3
{[%clk 0:01:00.6]} 22... Bxf3 {[%clk 0:01:07.1]} 23. gxf3 {[%clk 0:01:00]} 23...
Rde7 {[%clk 0:01:05.2]} 24. Rg1 {[%clk 0:00:52.8]} 24... Kh7 {[%clk 0:01:04.1]}
25. Rcd1 {[%clk 0:00:43]} 25... Rf7 {[%clk 0:00:51.1]} 26. Rd6 {[%clk
0:00:38.5]} 26... Rf6 {[%clk 0:00:45.9]} 27. Rd7 {[%clk 0:00:37.3]} 27... Rxf3
{[%clk 0:00:37.8]} 28. Rxa7 {[%clk 0:00:36.1]} 28... Rh3 {[%clk 0:00:33.1]} 29.
Rd1 {[%clk 0:00:33]} 29... Rxh4 {[%clk 0:00:27.5]} 30. Rdd7 {[%clk 0:00:32.1]}
30... Rg8 {[%clk 0:00:22.3]} 31. Kb3 {[%clk 0:00:19.8]} 31... Re4 {[%clk
0:00:17.5]} 32. a5 {[%clk 0:00:19.6]} 32... bxa5 {[%clk 0:00:17]} 33. Bxc5
{[%clk 0:00:19.5]} 33... Kh8 {[%clk 0:00:12.9]} 34. Bb6 {[%clk 0:00:17.4]} 34...
a4+ {[%clk 0:00:12.2]} 35. Rxa4 {[%clk 0:00:16.6]} 35... h5 {[%clk 0:00:11.8]}
36. Raa7 {[%clk 0:00:16.4]} 36... h4 {[%clk 0:00:09.7]} 37. Be3 {[%clk
0:00:13.7]} 37... h3 {[%clk 0:00:09.3]} 38. Bh6 {[%clk 0:00:13.2]} 38... h2
{[%clk 0:00:04.3]} 39. Bxg7+ {[%clk 0:00:13.1]} 39... Rxg7 {[%clk 0:00:04.7]}
40. Rxg7 {[%clk 0:00:10.7]} 40... h1=Q {[%clk 0:00:05]} 41. Rgd7 {[%clk
0:00:09.5]} 41... Qb1+ {[%clk 0:00:04.8]} 42. Ka4 {[%clk 0:00:09.2]} 42... Qa2+
{[%clk 0:00:04.4]} 43. Kb5 {[%clk 0:00:09.1]} 43... Qxc4+ {[%clk 0:00:04.8]} 44.
Kb6 {[%clk 0:00:09]} 44... Re6+ {[%clk 0:00:05.2]} 45. Kb7 {[%clk 0:00:08.8]}
45... Qc6+ {[%clk 0:00:05.7]} 46. Kb8 {[%clk 0:00:08.7]} 46... Re8+ {[%clk
0:00:05.7]} 0-1

[Event "Late-Titled-Tuesday-Blitz-July-09-2024"]
[Site "Chess.com"]
[Date "2024.07.09"]
[Round "9"]
[White "Seochesspie"]
[Black "Sek_Konstantin"]
[Result "1-0"]
[WhiteElo "2945"]
[BlackElo "2746"]
[TimeControl "180+1"]
[EndTime "15:44:34 PDT"]
[Termination "Seochesspie won on time"]

1. e4 {[%clk 0:03:00.9]} 1... e5 {[%clk 0:02:59.6]} 2. Nf3 {[%clk 0:03:00.8]}
2... Nc6 {[%clk 0:02:59.9]} 3. Bb5 {[%clk 0:03:01.1]} 3... a6 {[%clk 0:02:59.6]}
4. Ba4 {[%clk 0:03:01.4]} 4... d6 {[%clk 0:02:59.6]} 5. O-O {[%clk 0:02:57.2]}
5... Bg4 {[%clk 0:02:58.7]} 6. Bxc6+ {[%clk 0:02:54.5]} 6... bxc6 {[%clk
0:02:58.2]} 7. h3 {[%clk 0:02:50.1]} 7... Bd7 {[%clk 0:02:50.9]} 8. d4 {[%clk
0:02:49.4]} 8... exd4 {[%clk 0:02:26.7]} 9. Nxd4 {[%clk 0:02:49.4]} 9... Nf6
{[%clk 0:02:26.1]} 10. Nc3 {[%clk 0:02:49.2]} 10... Be7 {[%clk 0:02:25.9]} 11.
Qf3 {[%clk 0:02:47.2]} 11... O-O {[%clk 0:02:25.8]} 12. Nf5 {[%clk 0:02:44.7]}
12... Bxf5 {[%clk 0:02:23.2]} 13. Qxf5 {[%clk 0:02:45.6]} 13... Nd7 {[%clk
0:02:23]} 14. b3 {[%clk 0:02:39.9]} 14... Bf6 {[%clk 0:02:21.1]} 15. Bb2 {[%clk
0:02:40.3]} 15... Nc5 {[%clk 0:02:20.9]} 16. Nd1 {[%clk 0:02:28.6]} 16... Bxb2
{[%clk 0:02:18.6]} 17. Nxb2 {[%clk 0:02:29.5]} 17... Re8 {[%clk 0:02:19.3]} 18.
Rfe1 {[%clk 0:02:29.7]} 18... Re5 {[%clk 0:02:17.9]} 19. Qf4 {[%clk 0:02:24]}
19... Qe7 {[%clk 0:02:16.1]} 20. f3 {[%clk 0:02:24.1]} 20... Ne6 {[%clk
0:02:01.6]} 21. Qd2 {[%clk 0:02:22.3]} 21... Qh4 {[%clk 0:01:46.4]} 22. Nd3
{[%clk 0:02:08.4]} 22... Rg5 {[%clk 0:01:41.6]} 23. f4 {[%clk 0:02:03.2]} 23...
Rg3 {[%clk 0:01:39.4]} 24. Kh2 {[%clk 0:02:00.4]} 24... Nd4 {[%clk 0:01:21.8]}
25. Rf1 {[%clk 0:01:42.7]} 25... Rg6 {[%clk 0:00:56.8]} 26. c3 {[%clk
0:01:36.7]} 26... Nb5 {[%clk 0:00:35.2]} 27. Rf3 {[%clk 0:01:33.7]} 27... Re6
{[%clk 0:00:28.4]} 28. a4 {[%clk 0:01:28.3]} 28... Na7 {[%clk 0:00:28.4]} 29. e5
{[%clk 0:01:23.8]} 29... f5 {[%clk 0:00:25.9]} 30. Re1 {[%clk 0:01:19.7]} 30...
Rae8 {[%clk 0:00:25.1]} 31. b4 {[%clk 0:01:13.4]} 31... Nc8 {[%clk 0:00:23]} 32.
Rfe3 {[%clk 0:01:11.8]} 32... Qd8 {[%clk 0:00:17.6]} 33. Qf2 {[%clk 0:01:08]}
33... Nb6 {[%clk 0:00:16.9]} 34. exd6 {[%clk 0:01:00.9]} 34... Rxe3 {[%clk
0:00:15.4]} 35. Rxe3 {[%clk 0:01:01.2]} 35... Rxe3 {[%clk 0:00:14.9]} 36. Qxe3
{[%clk 0:00:59.1]} 36... cxd6 {[%clk 0:00:15.5]} 37. Qe6+ {[%clk 0:00:57.8]}
37... Kh8 {[%clk 0:00:15.5]} 38. a5 {[%clk 0:00:51.9]} 38... Nd5 {[%clk
0:00:15.6]} 39. c4 {[%clk 0:00:49.7]} 39... Ne7 {[%clk 0:00:15.7]} 40. b5 {[%clk
0:00:42.3]} 40... axb5 {[%clk 0:00:15.3]} 41. cxb5 {[%clk 0:00:43.2]} 41... cxb5
{[%clk 0:00:15.7]} 42. a6 {[%clk 0:00:43.6]} 42... Ng8 {[%clk 0:00:11.7]} 43. a7
{[%clk 0:00:34]} 43... Nf6 {[%clk 0:00:09.4]} 44. Nb4 {[%clk 0:00:29]} 44... Qa8
{[%clk 0:00:06.5]} 45. Qe7 {[%clk 0:00:24.3]} 45... h6 {[%clk 0:00:04.9]} 46.
Qc7 {[%clk 0:00:17.2]} 46... Kh7 {[%clk 0:00:02.9]} 47. Nc6 {[%clk 0:00:11.3]}
47... Nd5 {[%clk 0:00:01.1]} 48. Qb8 {[%clk 0:00:10.9]} 1-0

[Event "Late-Titled-Tuesday-Blitz-July-09-2024"]
[Site "Chess.com"]
[Date "2024.07.09"]
[Round "9"]
[White "FollowRivers"]
[Black "bazar-wokzal"]
[Result "0-1"]
[WhiteElo "2500"]
[BlackElo "2650"]
[TimeControl "180+1"]
[EndTime "15:44:36 PDT"]
[Termination "bazar-wokzal won by resignation"]

1. Nf3 {[%clk 0:03:00.9]} 1... c5 {[%clk 0:02:59.3]} 2. e3 {[%clk 0:02:58.4]}
2... Nf6 {[%clk 0:02:57.8]} 3. b3 {[%clk 0:02:58.9]} 3... d5 {[%clk 0:02:55.5]}
4. Bb2 {[%clk 0:02:58.8]} 4... a6 {[%clk 0:02:53]} 5. Be2 {[%clk 0:02:55.8]}
5... Nc6 {[%clk 0:02:52.1]} 6. O-O {[%clk 0:02:56.2]} 6... Bg4 {[%clk
0:02:51.5]} 7. d4 {[%clk 0:02:56.1]} 7... e6 {[%clk 0:02:51.5]} 8. c4 {[%clk
0:02:43.3]} 8... cxd4 {[%clk 0:02:47.9]} 9. Nxd4 {[%clk 0:02:42.3]} 9... Bxe2
{[%clk 0:02:45.3]} 10. Qxe2 {[%clk 0:02:42.5]} 10... Nxd4 {[%clk 0:02:42.6]} 11.
Bxd4 {[%clk 0:02:43.4]} 11... dxc4 {[%clk 0:02:42.5]} 12. Qxc4 {[%clk
0:02:44.1]} 12... Rc8 {[%clk 0:02:42.2]} 13. Qa4+ {[%clk 0:02:40.9]} 13... Qd7
{[%clk 0:02:40.9]} 14. Qxd7+ {[%clk 0:02:39.4]} 14... Nxd7 {[%clk 0:02:40]} 15.
Nd2 {[%clk 0:02:37.2]} 15... e5 {[%clk 0:02:35]} 16. Bb2 {[%clk 0:02:36.9]}
16... Rc2 {[%clk 0:02:32.6]} 17. Bc1 {[%clk 0:01:59.1]} 17... Bb4 {[%clk
0:02:28]} 18. Ne4 {[%clk 0:01:39.5]} 18... f5 {[%clk 0:02:25.9]} 19. Ng3 {[%clk
0:01:39.5]} 19... g6 {[%clk 0:02:21.2]} 20. a3 {[%clk 0:01:39.2]} 20... Bc3
{[%clk 0:02:15.6]} 21. Rb1 {[%clk 0:01:39.4]} 21... Ke7 {[%clk 0:02:12.5]} 22.
a4 {[%clk 0:01:29.7]} 22... Bb4 {[%clk 0:02:00.5]} 23. Bb2 {[%clk 0:01:29.6]}
23... Ke6 {[%clk 0:01:55.2]} 24. Rfd1 {[%clk 0:01:24.6]} 24... Nf6 {[%clk
0:01:49.7]} 25. h3 {[%clk 0:01:19.1]} 25... Rhc8 {[%clk 0:01:46.3]} 26. Nf1
{[%clk 0:00:55.2]} 26... Ne4 {[%clk 0:01:43.9]} 27. f3 {[%clk 0:00:51.3]} 27...
Nf2 {[%clk 0:01:26.1]} 28. Rdc1 {[%clk 0:00:46.2]} 28... Nd3 {[%clk 0:01:21]}
29. Rxc2 {[%clk 0:00:46.2]} 29... Rxc2 {[%clk 0:01:20.5]} 30. Ba1 {[%clk
0:00:43.6]} 30... Bc5 {[%clk 0:01:09.7]} 31. Rd1 {[%clk 0:00:41.2]} 31... e4
{[%clk 0:01:03.4]} 32. fxe4 {[%clk 0:00:39]} 32... fxe4 {[%clk 0:01:03.7]} 33.
Bd4 {[%clk 0:00:26.4]} 33... Bxd4 {[%clk 0:00:57.2]} 34. exd4 {[%clk 0:00:27.3]}
34... Rc1 {[%clk 0:00:56.3]} 35. Rxc1 {[%clk 0:00:24.1]} 35... Nxc1 {[%clk
0:00:56]} 36. Nd2 {[%clk 0:00:18.2]} 36... Kd5 {[%clk 0:00:55.5]} 37. Kf2 {[%clk
0:00:15.1]} 37... Kxd4 {[%clk 0:00:55.5]} 38. Nc4 {[%clk 0:00:14.6]} 38... Nxb3
{[%clk 0:00:54.1]} 39. Nd6 {[%clk 0:00:13.6]} 39... Nc5 {[%clk 0:00:46.3]} 40.
a5 {[%clk 0:00:11.5]} 40... Kd5 {[%clk 0:00:40.3]} 41. Ne8 {[%clk 0:00:10.6]}
41... Nb3 {[%clk 0:00:33.7]} 42. Nf6+ {[%clk 0:00:10]} 42... Kd4 {[%clk
0:00:34.2]} 43. Nxh7 {[%clk 0:00:08.6]} 43... Nxa5 {[%clk 0:00:33.4]} 44. Nf8
{[%clk 0:00:07.7]} 44... Nb3 {[%clk 0:00:27.9]} 45. Nxg6 {[%clk 0:00:07.8]}
45... a5 {[%clk 0:00:26.6]} 46. h4 {[%clk 0:00:07.8]} 46... e3+ {[%clk
0:00:18.7]} 47. Ke1 {[%clk 0:00:08]} 47... a4 {[%clk 0:00:16.9]} 48. h5 {[%clk
0:00:08]} 48... a3 {[%clk 0:00:16.4]} 49. h6 {[%clk 0:00:06.5]} 49... a2 {[%clk
0:00:16.7]} 50. h7 {[%clk 0:00:06.7]} 50... a1=Q+ {[%clk 0:00:16.8]} 51. Ke2
{[%clk 0:00:07.6]} 51... Qb2+ {[%clk 0:00:15.6]} 52. Kf3 {[%clk 0:00:07]} 52...
Qf2+ {[%clk 0:00:15.4]} 53. Kg4 {[%clk 0:00:07.2]} 53... Qxg2+ {[%clk
0:00:15.5]} 54. Kf5 {[%clk 0:00:07.9]} 54... Qh3+ {[%clk 0:00:13.4]} 0-1